fUST/lending_fUST_20240610
["ID","MTS","AMOUNT","RATE_DAILY","PERIOD"]
[328908712,1717973444552,-151.0,0.00019996,2]
[328908713,1717973444563,-219.423509,0.00019996,2]
[328908714,1717973444573,-641.669815,0.00019996,2]
[328908715,1717973444584,-219.423509,0.00019996,2]
[328908716,1717973444596,-641.669815,0.00019996,2]
[328908717,1717973444607,-1637.25986,0.00019996,2]
[328908718,1717973444618,-1637.25986,0.00019996,2]
[328908719,1717973444629,-151.0,0.00019996,2]
[328908720,1717973444640,-1181.30583,0.00019996,2]
[328908721,1717973444651,-1181.30583,0.00019996,2]
[328908722,1717973444661,-151.0,0.00019996,2]
[328908723,1717973444673,-151.0,0.00019996,2]
[328908724,1717973444684,-151.0,0.00019996,2]
[328908725,1717973444695,-151.0,0.00019996,2]
[328908727,1717973444705,-151.0,0.00019996,2]
[328908728,1717973444716,-151.0,0.00019996,2]
[328908729,1717973444727,-1934.720279,0.00019996,2]
[328908730,1717973444738,-136.18354254,0.00019996,2]
[328908731,1717973444758,-1544.13388645,0.00019996,2]
[328908732,1717973444884,-254.40285001,0.00019996,2]
[328908733,1717973444894,-151.0,0.00019996,2]
[328908734,1717973444905,-291.863228,0.00019996,2]
[328908735,1717973444921,-291.863228,0.00019996,2]
[328908736,1717973444937,-188.127133,0.00019996,2]
[328908737,1717973444953,-188.127133,0.00019996,2]
[328908738,1717973444968,-6299.48953147,0.0002,2]
[328908739,1717973444986,-958.48682581,0.0002,2]
[328909037,1717973466410,1716.13741953,9.999e-05,2]
[328909038,1717973646838,1342.97936406,9.999e-05,2]
[328909114,1717974633680,-945.74878612,0.00016499,2]
[328909116,1717974633690,-286.29745357,0.000165,2]
[328909118,1717974633701,-166.666666,0.00016986,2]
[328909119,1717974633712,-234.399943,0.00017031,2]
[328909120,1717974633722,-1729.9735818,0.00017189,2]
[328909121,1717974633732,-24890.0,0.00017283,2]
[328909122,1717974633742,-1313.64477068,0.00018215,2]
[328909123,1717974633753,-938.60358095,0.000187,2]
[328909124,1717974633763,-431.96897758,0.0001876,2]
[328909125,1717974633773,-160.04854241,0.0001886,2]
[328909126,1717974633783,-218.35277682,0.000189,2]
[328909127,1717974633796,-187.78108932,0.00018955,2]
[328909128,1717974633806,-1000.14914616,0.00018956,2]
[328909129,1717974634236,-1138.11370458,0.00018956,2]
[328909161,1717974639389,-1306.77718842,0.00018956,2]
[328909162,1717974639402,-3192.20018612,0.00018956,2]
[328909163,1717974639413,-4524.87756895,0.00018957,2]
[328909220,1717974645619,-861.37795941,0.00018956,2]
[328909222,1717974645629,-2563.05973068,0.00018957,2]
[328909224,1717974645642,-2497.76015031,0.00018957,2]
[328909226,1717974645652,-1908.91015729,0.0001896,2]
[328909228,1717974645662,-270.433263,0.00019178,2]
[328909230,1717974645672,-4236.94913646,0.00019878,2]
[328909232,1717974645683,-500.0,0.00019996,2]
[328909234,1717974645694,-500.0,0.00019996,2]
[328909236,1717974645704,-500.0,0.00019996,2]
[328909238,1717974645714,-500.0,0.00019996,2]
[328909240,1717974645725,-500.0,0.00019996,2]
[328909242,1717974645735,-500.0,0.00019996,2]
[328909244,1717974645745,-500.0,0.00019996,2]
[328909246,1717974645754,-500.0,0.00019996,2]
[328909248,1717974645766,-170.88378603,0.00019996,2]
[328909250,1717974645776,-500.0,0.00019996,2]
[328909252,1717974645793,-500.0,0.00019996,2]
[328909254,1717974645803,-500.0,0.00019996,2]
[328909256,1717974645815,-500.0,0.00019996,2]
[328909258,1717974645825,-10519.88441155,0.00019997,2]
[328909260,1717974645834,-844.78682589,0.00019997,2]
[328909262,1717974645844,-1410.63206515,0.00019999,2]
[328909264,1717974645854,-546.64270614,0.00019999,2]
[328909266,1717974645863,-21731.5904665,0.00019999,2]
[328909268,1717974645876,-675.01,0.00019999,2]
[328909281,1717974645997,-324.76054633,0.00019999,2]
[328909383,1717974680834,213.03415827,9.999e-05,2]
[328909389,1717974696470,155.01395126,9.999e-05,2]
[328909390,1717974717592,838.08942219,9.999e-05,2]
[328909391,1717974733330,155.01395126,9.999e-05,2]
[328909392,1717974745328,155.01395126,9.999e-05,2]
[328909393,1717975465363,155.01395126,9.999e-05,2]
[328909394,1717975468495,155.01395126,9.999e-05,2]
[328909515,1717975834538,-2113.53223879,0.00016979,2]
[328909517,1717975834548,-2814.56742105,0.0001698,2]
[328909519,1717975834558,-166.666666,0.00016986,2]
[328909521,1717975834569,-632.70327939,0.00018,2]
[328909522,1717975834680,-2764.13862909,0.00018,2]
[328909523,1717975834691,-1355.02163008,0.0001828,2]
[328909524,1717975834701,-260.151565,0.00018281,2]
[328909525,1717975834711,-606.592145,0.000185,2]
[328909526,1717975834721,-938.60358095,0.000187,2]
[328909527,1717975834732,-271.90119589,0.000189,2]
[328909528,1717975834742,-163.07446836,0.00019,2]
[328909529,1717975834752,-158.894375,0.00019178,2]
[328909530,1717975834762,-205.268679,0.00019562,2]
[328909531,1717975834771,-201.4392426,0.00019562,2]
[328909532,1717975834781,-205.268679,0.000196,2]
[328909533,1717975834791,-4148.67936278,0.00019862,2]
[328909534,1717975834802,-1302.68548416,0.00019954,2]
[328909535,1717975834814,-289.20176274,0.00019974,2]
[328909536,1717975834824,-245.31199902,0.00019974,2]
[328909537,1717975834834,-303.56848351,0.00019975,2]
[328909538,1717975834844,-258.23623728,0.00019975,2]
[328909539,1717975834855,-33901.80434569,0.00019976,2]
[328909540,1717975834868,-2189.87307701,0.00019976,2]
[328909600,1717975839917,-254.18746756,0.00019976,2]
[328909602,1717975839928,-172.37615471,0.00019997,2]
[328909604,1717975839938,-642.22318542,0.00019997,2]
[328909606,1717975839948,-288.67371979,0.00019997,2]
[328909608,1717975839959,-157.66978397,0.00019998,2]
[328909610,1717975839970,-972.19383994,0.00019998,2]
[328909612,1717975839980,-246.84518891,0.00019999,2]
[328909638,1717975840264,-253.15481109,0.00019999,2]
[328909640,1717975840275,-185.653754,0.00019999,2]
[328909642,1717975840285,-2242.5426395,0.0002,2]
[328909644,1717975840296,-932.35426985,0.0002,2]
[328909646,1717975840307,-1455.8319284,0.0002,3]
[328909648,1717975840318,-155.01395126,0.0002,2]
[328909650,1717975840328,-155.01395126,0.0002,2]
[328909651,1717975840338,-539.86203041,0.0002,2]
[328909653,1717975840348,-528.95396737,0.0002,4]
[328909654,1717975840359,-155.01395126,0.0002,2]
[328909656,1717975840369,-155.01395126,0.0002,2]
[328909658,1717975840380,-155.01395126,0.0002,2]
[328909660,1717975840391,-31.63908588,0.0002,2]
[328909662,1717975840404,-403.36091412,0.0002,2]
[328909664,1717975840416,-266.48228968,0.0002,2]
[328909666,1717975840427,-584.6618454,0.00020411,2]
[328909668,1717975840438,-1295.654326,0.000205,2]
[328909670,1717975840448,-471.08100537,0.00021,2]
[328909672,1717975840458,-393.98121283,0.00021,2]
[328909674,1717975840469,-2072.96177146,0.00021,2]
[328909675,1717975840480,-7267.44042319,0.00021,2]
[328909677,1717975840490,-1000.0,0.00021,2]
[328909679,1717975840500,-169.3709205,0.00021205,2]
[328909681,1717975840512,-153.0,0.00021205,2]
[328909683,1717975840522,-153.0,0.00021205,2]
[328909684,1717975840533,-153.0,0.00021205,2]
[328909685,1717975840544,-956.05706383,0.0002142,7]
[328909687,1717975840555,-2000.0,0.0002142,2]
[328909689,1717975840565,-34796.40526719,0.0002142,3]
[328909878,1717975848228,-642.22318542,0.00021419,2]
[328911597,1717976043402,155.01395126,9.999e-05,2]
[328911598,1717976048986,1065.36454469,9.999e-05,2]
[328911599,1717976069183,2642.54173153,9.999e-05,2]
[328911606,1717976071196,411.5321918,9.999e-05,2]
[328911607,1717976084452,927.3752309,9.999e-05,2]
[328911629,1717976496270,216.30293909,9.999e-05,2]
[328911630,1717976543772,2094.55480733,9.999e-05,2]
[328911645,1717976565724,2094.55480733,9.999e-05,2]
[328911648,1717976587831,987.8353602,9.999e-05,2]
[328911657,1717976742416,7997.83921302,9.999e-05,2]
[328911658,1717976742454,5299.56227041,9.999e-05,2]
[328911659,1717976759419,2121.07320042,9.999e-05,2]
[328911684,1717976984836,-2410.47181677,0.00016189,2]
[328911685,1717976984858,-7065.32818323,0.0001619,2]
[328911717,1717977039893,-260.151566,0.00016192,2]
[328911719,1717977039904,-275.59426284,0.000166,2]
[328911721,1717977039914,-1112.45868093,0.00016601,2]
[328911722,1717977039925,-251.80923849,0.00016601,2]
[328911723,1717977039936,-1204.66016215,0.00016601,2]
[328911724,1717977039947,-445.50826244,0.00016602,2]
[328911725,1717977039957,-5186.22109566,0.00016602,2]
[328911726,1717977039969,-2370.43122849,0.00016602,2]
[328911727,1717977039979,-3924.33405008,0.00016603,2]
[328911728,1717977039992,-20975.66594992,0.00016603,2]
[328911729,1717977040002,-166.666666,0.00016986,2]
[328911730,1717977040014,-445.19007289,0.00017895,2]
[328911731,1717977040025,-261.91979643,0.00017995,2]
[328911732,1717977040035,-692.0586622,0.00017995,2]
[328911733,1717977040046,-686.12053619,0.00017995,2]
[328911734,1717977040056,-215.86209911,0.00017995,2]
[328911735,1717977040066,-309.9070279,0.00017996,2]
[328911736,1717977040077,-12829.37772823,0.00017997,2]
[328911755,1717977044992,-1845.55,0.00017997,2]
[328911768,1717977047971,-0.75225738,0.00017997,2]
[328911778,1717977048886,-511.1056432,0.00017997,2]
[328911779,1717977048919,-3545.11642387,0.00017997,2]
[328911780,1717977048931,-3803.57518612,0.00017997,2]
[328911781,1717977048944,-1281.10807788,0.00017997,2]
[328911782,1717977048956,-8298.49547798,0.00017997,2]
[328911783,1717977048966,-155.01395126,0.00018,2]
[328911784,1717977048975,-632.70327939,0.00018,2]
[328911785,1717977048985,-2764.13862909,0.00018,2]
[328911786,1717977048995,-606.592145,0.000185,2]
[328911787,1717977049006,-1073.34212016,0.000189,2]
[328911788,1717977049016,-163.07446836,0.00019,2]
[328911789,1717977049027,-158.894375,0.00019178,2]
[328911790,1717977049038,-445.19007283,0.00019413,2]
[328911791,1717977049048,-1302.5,0.00019978,2]
[328911792,1717977049058,-411.00285074,0.00019994,2]
[328911793,1717977049068,-1529.1584495,0.00019994,2]
[328911794,1717977049078,-511.24571391,0.00019994,2]
[328911795,1717977049088,-309.92252015,0.00019994,2]
[328911796,1717977049097,-4238.57246775,0.00019995,2]
[328911797,1717977049108,-307.38416425,0.00019996,2]
[328911798,1717977049118,-1982.29671203,0.00019996,2]
[328911799,1717977049128,-190.4326803,0.00019996,2]
[328911800,1717977049139,-1341.79550096,0.00019996,2]
[328911801,1717977049149,-269.05140935,0.00019996,2]
[328911802,1717977049160,-187.66449558,0.00019996,2]
[328911803,1717977049171,-945.46842875,0.00019998,2]
[328911804,1717977049181,-6524.13192627,0.00019998,2]
[328911805,1717977129514,155.01395126,9.999e-05,2]
[328911806,1717977130609,515.61728899,9.999e-05,2]
[328911816,1717977283753,552.39710422,9.999e-05,2]
[328911827,1717977345491,155.01395126,9.999e-05,2]
[328911828,1717977361471,224.1650135,9.999e-05,2]
[328911895,1717977714513,155.01395126,9.999e-05,2]
[328911898,1717977738517,5969.18885647,9.999e-05,2]
[328912046,1717978233674,-286.64405799,0.00015,2]
[328912047,1717978233684,-170.793334,0.00015731,2]
[328912048,1717978233695,-1100.59931817,0.00016118,2]
[328912049,1717978233705,-451.7944376,0.00016119,2]
[328912050,1717978233716,-250.0,0.00016433,2]
[328912051,1717978233726,-474.07917175,0.00016889,2]
[328912052,1717978233737,-1231.64147903,0.00016969,2]
[328912053,1717978233747,-166.666666,0.00016986,2]
[328912054,1717978233756,-42100.06295128,0.00016988,2]
[328912055,1717978233766,-24900.0,0.00016989,2]
[328912056,1717978233776,-193.27998332,0.00017001,2]
[328912057,1717978233786,-1858.5893851,0.000171,2]
[328912058,1717978233795,-155.01395126,0.00018,2]
[328912059,1717978233804,-632.70327939,0.00018,2]
[328912060,1717978233814,-2764.13862909,0.00018,2]
[328912061,1717978233825,-155.01395126,0.00018307,2]
[328912062,1717978233835,-186.93861105,0.00018308,2]
[328912063,1717978233845,-474.07917174,0.00018552,2]
[328912064,1717978233855,-938.60358095,0.000187,2]
[328912065,1717978233864,-1474.04243354,0.000189,2]
[328912066,1717978233874,-195.62251,0.00019178,2]
[328912067,1717978233884,-548.67916088,0.00019595,2]
[328912068,1717978233894,-153.0,0.00019956,2]
[328912069,1717978233904,-499.72197945,0.00019993,2]
[328912070,1717978233914,-639.6022559,0.00019993,2]
[328912071,1717978233925,-591.90161515,0.00019996,2]
[328912072,1717978233935,-837.71685131,0.00019996,2]
[328912073,1717978233945,-1342.40609524,0.00019996,2]
[328912074,1717978233955,-6909.07204917,0.00019996,2]
[328912075,1717978233965,-1500.61628881,0.00019996,2]
[328912076,1717978233975,-187.72279245,0.00019996,2]
[328912077,1717978233984,-685.42557113,0.00019996,2]
[328912078,1717978233994,-390.52596317,0.00019996,2]
[328912079,1717978234003,-274.7519073,0.00019997,2]
[328912080,1717978234013,-7671.36846798,0.00019997,2]
[328912102,1717978243438,-2866.63474047,0.00019997,2]
[328912103,1717978243449,-478.30521125,0.00019998,2]
[328912104,1717978243511,-618.459,0.00019998,2]
[328912116,1717978244922,-2863.06848484,0.00019998,2]
[328912117,1717978244933,-2357.94325207,0.00019998,2]
[328912118,1717978244943,-194.23708942,0.00019998,2]
[328912119,1717978244954,-422.43907241,0.00019998,2]
[328912120,1717978244964,-780.9502552,0.00019999,2]
[328912121,1717978244974,-341.36184606,0.0002,7]
[328912122,1717978245009,-136.66668585,0.0002,7]
[328912124,1717978245019,-9500.51899678,0.0002,2]
[328912126,1717978245029,-528.95396737,0.0002,4]
[328912128,1717978245039,-932.35426985,0.0002,2]
[328912130,1717978245049,-155.01395126,0.0002,2]
[328912132,1717978245060,-281.26811784,0.0002,2]
[328912134,1717978245070,-1455.8319284,0.0002,3]
[328912137,1717978245080,-197.481158,0.0002,2]
[328912139,1717978245102,-197.481158,0.0002,2]
[328912141,1717978245113,-151.0,0.0002,2]
[328912143,1717978245123,-151.0,0.0002,2]
[328912146,1717978245135,-161.101739,0.0002,2]
[328912148,1717978245145,-151.0,0.0002,2]
[328912150,1717978245155,-1473.533874,0.0002,2]
[328912152,1717978245166,-1473.533874,0.0002,2]
[328912154,1717978245177,-151.0,0.0002,2]
[328912155,1717978245187,-151.0,0.0002,2]
[328912157,1717978245197,-151.0,0.0002,2]
[328912160,1717978245207,-2473.322952,0.0002,2]
[328912161,1717978245218,-2473.322952,0.0002,2]
[328912164,1717978245228,-169.31442,0.0002,2]
[328912165,1717978245239,-169.31442,0.0002,2]
[328912168,1717978245249,-151.0,0.0002,2]
[328912170,1717978245264,-151.0,0.0002,2]
[328912172,1717978245274,-151.0,0.0002,2]
[328912174,1717978245285,-151.0,0.0002,2]
[328912175,1717978245296,-151.0,0.0002,2]
[328912178,1717978245306,-1495.848862,0.0002,2]
[328912180,1717978245316,-1495.848862,0.0002,2]
[328912182,1717978245327,-151.0,0.0002,2]
[328912184,1717978245339,-675.977788,0.0002,2]
[328912185,1717978245349,-675.977788,0.0002,2]
[328912187,1717978245359,-240.082208,0.0002,2]
[328912189,1717978245370,-240.082208,0.0002,2]
[328912191,1717978245380,-474.07917174,0.00020214,2]
[328912193,1717978245391,-151.0,0.00020465,2]
[328912195,1717978245401,-584.6618454,0.00020603,2]
[328912197,1717978245412,-153.0,0.00020603,2]
[328912199,1717978245423,-306.0,0.00020603,2]
[328912201,1717978245433,-205.268679,0.00020603,2]
[328912204,1717978245444,-205.268679,0.00020603,2]
[328912205,1717978245454,-205.268679,0.00020603,2]
[328912207,1717978245465,-205.268679,0.00020603,2]
[328912210,1717978245475,-205.268679,0.00020603,2]
[328912212,1717978245486,-193.6341218,0.00020603,2]
[328912226,1717978245626,-471.08100537,0.00021,2]
[328912228,1717978245637,-7267.44042319,0.00021,2]
[328912230,1717978245648,-151.0,0.00021,2]
[328912232,1717978245658,-500.365152,0.00021,2]
[328912234,1717978245669,-500.365152,0.00021,2]
[328912236,1717978245679,-151.0,0.00021,2]
[328912238,1717978245689,-266.414533,0.00021,2]
[328912240,1717978245699,-151.0,0.00021,2]
[328912242,1717978245709,-151.0,0.00021,2]
[328912244,1717978245719,-1495.848862,0.00021,2]
[328912246,1717978245728,-1495.848862,0.00021,2]
[328912248,1717978245738,-203.222798,0.00021,2]
[328912250,1717978245748,-675.977788,0.00021,2]
[328912252,1717978245758,-675.977788,0.00021,2]
[328912254,1717978245768,-240.082208,0.00021,2]
[328912256,1717978245778,-240.082208,0.00021,2]
[328912258,1717978245787,-193.27998331,0.00021219,2]
[328912259,1717978245797,-163.73354267,0.0002128,2]
[328912261,1717978245806,-169.31442,0.000213,2]
[328912263,1717978245815,-169.31442,0.000213,2]
[328912265,1717978245825,-151.0,0.000213,2]
[328912267,1717978245834,-151.0,0.000213,2]
[328912269,1717978245844,-593.0,0.000213,2]
[328912270,1717978245853,-151.0,0.000213,2]
[328912272,1717978245863,-3000.0,0.00021318,2]
[328912274,1717978245872,-3000.0,0.00021318,2]
[328912276,1717978245881,-3000.0,0.00021318,2]
[328912278,1717978245891,-3000.0,0.00021318,2]
[328912280,1717978245901,-3000.0,0.00021318,2]
[328912282,1717978245911,-151.0,0.00021318,2]
[328912284,1717978245921,-1495.848862,0.00021318,2]
[328912286,1717978245931,-1495.848862,0.00021318,2]
[328912288,1717978245944,-675.977788,0.00021318,2]
[328912290,1717978245954,-3.28704862,0.00021318,2]
[328912312,1717978246161,-672.69073938,0.00021318,2]
[328912314,1717978246172,-240.082208,0.00021318,2]
[328912316,1717978246182,-240.082208,0.00021318,2]
[328912318,1717978246194,-240.082208,0.00021318,2]
[328912320,1717978246205,-240.082208,0.00021318,2]
[328912322,1717978246216,-55515.08226645,0.00021318,3]
[328912324,1717978246227,-1641.29847197,0.00021319,7]
[328912326,1717978246237,-2000.0,0.00021319,2]
[328912328,1717978246247,-151.0,0.00021319,2]
[328912330,1717978246260,-151.0,0.00021319,2]
[328912332,1717978246271,-151.0,0.00021319,2]
[328912334,1717978246281,-151.0,0.00021319,2]
[328912336,1717978246291,-151.0,0.00021319,2]
[328912338,1717978246303,-151.0,0.00021319,2]
[328912340,1717978246313,-151.415105,0.00021319,2]
[328912342,1717978246323,-151.0,0.00021319,2]
[328912344,1717978246335,-151.0,0.00021319,2]
[328912346,1717978246346,-151.0,0.00021319,2]
[328912348,1717978246355,-151.0,0.00021319,2]
[328912350,1717978246365,-151.0,0.00021319,2]
[328912352,1717978246375,-151.0,0.00021319,2]
[328912354,1717978246387,-313.958726,0.00021319,2]
[328912357,1717978246398,-313.958726,0.00021319,2]
[328912360,1717978246408,-151.0,0.00021319,2]
[328912362,1717978246418,-1816.748251,0.00021319,2]
[328912364,1717978246429,-151.0,0.00021319,2]
[328912366,1717978246439,-1816.748251,0.00021319,2]
[328912368,1717978246449,-151.0,0.00021319,2]
[328912371,1717978246459,-158.305972,0.00021319,2]
[328912374,1717978246473,-158.305972,0.00021319,2]
[328912377,1717978246484,-500.365152,0.00021319,2]
[328912380,1717978246494,-500.365152,0.00021319,2]
[328912382,1717978246504,-151.0,0.00021319,2]
[328912384,1717978246515,-197.481158,0.00021319,2]
[328912386,1717978246525,-197.481158,0.00021319,2]
[328912388,1717978246536,-197.481158,0.00021319,2]
[328912390,1717978246546,-197.481158,0.00021319,2]
[328912392,1717978246556,-151.0,0.00021319,2]
[328912394,1717978246567,-151.0,0.00021319,2]
[328912396,1717978246577,-151.0,0.00021319,2]
[328912398,1717978246588,-151.0,0.00021319,2]
[328912400,1717978246598,-1473.533874,0.00021319,2]
[328912402,1717978246608,-1473.533874,0.00021319,2]
[328912404,1717978246619,-1473.533874,0.00021319,2]
[328912406,1717978246629,-1473.533874,0.00021319,2]
[328912408,1717978246639,-151.0,0.00021319,2]
[328912413,1717978246654,-151.0,0.00021319,2]
[328912416,1717978246669,-151.0,0.00021319,2]
[328912419,1717978246683,-151.0,0.00021319,2]
[328912423,1717978246697,-151.0,0.00021319,2]
[328912425,1717978246708,-151.0,0.00021319,2]
[328912427,1717978246720,-2473.322952,0.00021319,2]
[328912429,1717978246734,-2473.322952,0.00021319,2]
[328912431,1717978246746,-2473.322952,0.00021319,2]
[328912434,1717978246759,-2473.322952,0.00021319,2]
[328912436,1717978246772,-169.31442,0.00021319,2]
[328912438,1717978246786,-169.31442,0.00021319,2]
[328912441,1717978246806,-169.31442,0.00021319,2]
[328912443,1717978246821,-169.31442,0.00021319,2]
[328912445,1717978246834,-169.31442,0.00021319,2]
[328912448,1717978246847,-169.31442,0.00021319,2]
[328912450,1717978246860,-151.0,0.00021319,2]
[328912452,1717978246872,-151.0,0.00021319,2]
[328912454,1717978246885,-151.0,0.00021319,2]
[328912457,1717978246898,-151.0,0.00021319,2]
[328912459,1717978246912,-222.424032,0.00021319,2]
[328912461,1717978246926,-151.0,0.00021319,2]
[328912463,1717978246939,-280.08275,0.00021319,2]
[328912466,1717978246951,-151.0,0.00021319,2]
[328912468,1717978246962,-1495.848862,0.00021319,2]
[328912470,1717978246972,-523.31734781,0.00021319,2]
[328913045,1717978691926,2399.0,0.0001401,2]
[328913060,1717979273524,10000.0,0.0001401,2]
[328913192,1717979433174,-323.96450678,0.00014999,2]
[328913194,1717979433184,-286.29745357,0.00015,2]
[328913196,1717979433194,-1100.59931817,0.00015,2]
[328913198,1717979433203,-166.666666,0.00016986,2]
[328913200,1717979433213,-1334.00041631,0.00018,2]
[328913202,1717979433223,-945.74878612,0.00018182,2]
[328913204,1717979433233,-1677.40358797,0.00018183,2]
[328913215,1717979433336,-2151.86859952,0.00018183,2]
[328913217,1717979433346,-24900.0,0.00018184,2]
[328913219,1717979433357,-938.60358095,0.000187,2]
[328913221,1717979433367,-1055.47921464,0.000189,2]
[328913223,1717979433377,-158.894375,0.00019178,2]
[328913225,1717979433388,-187.78108932,0.00019555,2]
[328913228,1717979433398,-1313.64477068,0.00019555,2]
[328913230,1717979433409,-1000.14914616,0.00019556,2]
[328913232,1717979433420,-1755.31191217,0.0002,2]
[328913411,1717979444456,-68.22255825,0.0002,2]
[328913425,1717979480552,10000.0,0.0001401,2]
[328913426,1717979489380,530.20911563,9.999e-05,2]
[328913518,1717980633673,-166.666666,0.00016986,2]
[328913519,1717980633684,-223.033374,0.00018136,2]
[328913520,1717980633693,-347.37251667,0.00018188,2]
[328913521,1717980633706,-1382.60106513,0.00018188,2]
[328913522,1717980633715,-15831.7868904,0.00018288,2]
[328913523,1717980633725,-938.60358095,0.000187,2]
[328913524,1717980633734,-703.65280976,0.000189,2]
[328913525,1717980633744,-163.07446836,0.00019,2]
[328913526,1717980633755,-350.29560457,0.00019455,2]
[328913527,1717980633764,-1302.68548416,0.00019534,2]
[328913528,1717980633774,-258.23623728,0.00019553,2]
[328913529,1717980633784,-289.20176274,0.00019553,2]
[328913530,1717980633794,-245.31199902,0.00019553,2]
[328913531,1717980633804,-155.0,0.00019553,2]
[328913532,1717980633814,-303.56848351,0.00019554,2]
[328913533,1717980633825,-21872.60039496,0.00019555,2]
[328913534,1717980633866,-848.54825264,0.00019555,2]
[328913625,1717981834765,-735.55079758,0.0001696,2]
[328913626,1717981834777,-1586.21617874,0.0001696,2]
[328913627,1717981834791,-288.25919777,0.0001696,2]
[328913628,1717981834804,-204.54124696,0.0001696,2]
[328913630,1717981834814,-2113.53223879,0.00016961,2]
[328913632,1717981834824,-166.666666,0.00016986,2]
[328913634,1717981834836,-241.592469,0.0001785,2]
[328913636,1717981834846,-274.23055325,0.00018897,2]
[328913638,1717981834858,-250.0,0.00018897,2]
[328913722,1717981844469,-2239.90807584,0.00018897,2]
[328913723,1717981844479,-632.70327939,0.00018898,2]
[328913724,1717981844489,-559.73560513,0.000189,2]
[328913725,1717981844498,-158.894375,0.00019178,2]
[328913726,1717981844508,-158.894375,0.00019178,2]
[328913727,1717981844517,-4238.41830585,0.00019212,2]
[328913728,1717981844526,-537.92256871,0.00019553,2]
[328913729,1717981844536,-2599.53898498,0.00019553,2]
[328913730,1717981844545,-2722.79116534,0.00019553,2]
[328913731,1717981844557,-1355.02163008,0.00019553,2]
[328913732,1717981844566,-606.592145,0.00019554,2]
[328913733,1717981844577,-19378.91430368,0.00019555,2]
[328913734,1717981844587,-306.50865399,0.000198,2]
[328913735,1717981844597,-160.04854241,0.000199,2]
[328913736,1717981844607,-540.60458538,0.00019998,2]
[328913737,1717981844617,-411.1821787,0.00019998,2]
[328913738,1717981844627,-869.07707739,0.00019999,2]
[328913739,1717981844636,-13892.56722781,0.0002,7]
[328913740,1717981844645,-2264.24081721,0.0002,2]
[328913818,1717983033437,-166.666666,0.00016986,2]
[328913819,1717983033447,-204.108641,0.00018159,2]
[328913821,1717983033457,-938.60358095,0.00018884,2]
[328913823,1717983033468,-155.21647712,0.00018884,2]
[328913824,1717983033478,-155.04321979,0.00018884,2]
[328913825,1717983033488,-6104.98765317,0.00018884,2]
[328913826,1717983033756,-386.01217285,0.00018884,2]
[328913827,1717983033769,-4051.76017361,0.00018884,2]
[328913828,1717983033778,-155.03634902,0.00018884,2]
[328913829,1717983033788,-155.26488353,0.00018884,2]
[328913830,1717983033797,-639.6022559,0.00018885,2]
[328913831,1717983033807,-390.52596317,0.00018887,2]
[328913832,1717983033821,-499.72197945,0.00018887,2]
[328913833,1717983033830,-685.42557113,0.0001889,2]
[328913834,1717983033839,-187.72279245,0.00018891,2]
[328913835,1717983033850,-1500.61628881,0.00018893,2]
[328913836,1717983033859,-6909.07204917,0.00018895,2]
[328913837,1717983033869,-1342.40609524,0.00018897,2]
[328913838,1717983033879,-591.90161515,0.00018898,2]
[328913839,1717983033889,-373.15707009,0.000189,2]
[328913840,1717983033899,-620.03711353,0.00019367,2]
[328913841,1717983033909,-837.71685131,0.00019532,2]
[328913842,1717983033920,-2112.24824961,0.00019534,2]
[328913843,1717983033930,-2481.9201734,0.00019553,2]
[328913844,1717983033940,-268.19507225,0.00019802,2]
[328913845,1717983033950,-1115.33855325,0.00019902,2]
[328913846,1717983033960,-1014.06439371,0.00019978,2]
[328913847,1717983033970,-5657.72918011,0.0001999,2]
[328913927,1717983045168,-503.96475741,0.0001999,2]
[328913932,1717983045625,155.0,9.999e-05,2]
[328913939,1717983048617,665.71666123,9.999e-05,2]
[328914150,1717984234738,-166.666666,0.00016986,2]
[328914151,1717984234749,-155.0,0.00018,2]